[Event "EYCC Open-U12 2019"]
[Site "Bratislava"]
[Date "2019.08.04"]
[Round "3.20"]
[White "Vagman, Roy"]
[Black "Palczert, Matyas"]
[Result "1-0"]
[ECO "B23"]
[WhiteElo "1941"]
[BlackElo "2065"]
[Annotator "NA"]
[PlyCount "113"]
[EventDate "2019.08.02"]
[EventType "swiss"]
[EventCountry "SVK"]
[SourceTitle "playchess.com"]
[Source "ChessBase"]
[SourceQuality "1"]
[TimeControl "40/5400+30:1800+30"]

1. e4 {[%emt 0:00:00]} c5 {[%emt 0:00:00]} 2. Nc3 {[%emt 0:00:00]} Nc6 {[%emt 0:00:00]} 3. Nge2 {[%emt 0:00:26]} Nd4 {[%emt 0:00:22]} 4. d3 {[%emt 0:01:19]} g6 {[%emt 0:02:02]} 5. Nxd4 {[%emt 0:02:15]} cxd4 {[%emt 0:00:14]} 6. Ne2 {[%emt 0:00:09]} Bg7 {[%emt 0:00:49]} 7. c3 {[%emt 0:01:12]} dxc3 {[%emt 0:01:07]} 8. Nxc3 {[%emt 0:01:18]} e6 {[%emt 0:05:30]} 9. d4 {[%emt 0:05:49]} d6 {[%emt 0:11:15]} 10. Be3 {[%emt 0:03:16]} Ne7 {[%emt 0:02:48]} 11. Qd2 {[%emt 0:10:03]} O-O {[%emt 0:04:25]} 12. h4 {[%emt 0:10:19]} d5 {[%emt 0:10:49]} 13. e5 {[%emt 0:01:08]} Nf5 {[%emt 0:05:06]} 14. g4 {[%emt 0:04:40]} Nxe3 {[%emt 0:02:09]} 15. Qxe3 {[%emt 0:00:34]} f6 {[%emt 0:01:41]} 16. f4 {[%emt 0:00:43]} fxe5 {[%emt 0:04:59]} 17. fxe5 {[%emt 0:00:15]} Qe8 {[%emt 0:09:54]} 18. h5 {[%emt 0:15:04]} Qf7 {[%emt 0:04:15]} 19. h6 {[%emt 0:01:05]} Bh8 {[%emt 0:00:10]} 20. Bh3 {[%emt 0:00:47]} Bd7 {[%emt 0:05:41]} 21. Rf1 {[%emt 0:03:21]} Qe7 {[%emt 0:00:28]} 22. Rxf8+ {[%emt 0:00:37]} Rxf8 {[%emt 0:00:14]} 23. g5 {[%emt 0:00:16]} b5 {[%emt 0:05:05]} 24. a3 {[%emt 0:05:11]} a5 {[%emt 0:02:34]} 25. Rc1 {[%emt 0:02:57]} b4 {[%emt 0:02:44]} 26. Ne2 {[%emt 0:01:54]} bxa3 {[%emt 0:00:52]} 27. bxa3 {[%emt 0:00:16]} Rb8 {[%emt 0:01:45]} 28. Kf2 {[%emt 0:01:28]} a4 {[%emt 0:03:20]} 29. Rc3 {[%emt 0:01:46]} Bb5 {[%emt 0:01:44]} 30. Nf4 {[%emt 0:03:32]} Bd7 {[%emt 0:03:28]} 31. Qg3 {[%emt 0:02:37]} Rb2+ {[%emt 0:01:50]} 32. Ne2 {[%emt 0:00:46]} Qf8+ {[%emt 0:00:52]} 33. Rf3 {[%emt 0:00:09]} Qe7 {[%emt 0:00:43]} 34. Qf4 {[%emt 0:01:15]} Ra2 {[%emt 0:01:23]} 35. Qc1 {[%emt 0:00:57]} Qd8 {[%emt 0:04:37]} 36. Qb1 {[%emt 0:01:00]} Rd2 {[%emt 0:00:08]} 37. Qb4 {[%emt 0:00:15]} Rc2 {[%emt 0:00:30]} 38. Qxa4 {[%emt 0:01:40]} Qc8 {[%emt 0:01:14]} 39. Qb4 {[%emt 0:00:48]} Qe8 {[%emt 0:00:49]} 40. Rc3 {[%emt 0:00:00]} Ra2 {[%emt 0:00:00]} 41. Qb3 {[%emt 0:03:47]} Ra1 {[%emt 0:04:55]} 42. Nc1 {[%emt 0:01:15]} Qf8+ {[%emt 0:02:32]} 43. Kg2 {[%emt 0:00:39]} Qd8 {[%emt 0:00:52]} 44. Kh2 {[%emt 0:02:24]} Qf8 {[%emt 0:04:42]} 45. Kg3 {[%emt 0:04:24]} Qd8 {[%emt 0:00:31]} 46. Kf2 {[%emt 0:01:11]} Qf8+ {[%emt 0:04:55]} 47. Ke2 {[%emt 0:01:24]} Qe8 {[%emt 0:04:29]} 48. Qb2 {[%emt 0:00:36]} Bb5+ {[%emt 0:00:12]} 49. Kd2 {[%emt 0:00:41]} Qf7 {[%emt 0:03:18]} 50. Rc8+ {[%emt 0:00:32]} Be8 {[%emt 0:00:06]} 51. Rxe8+ {[%emt 0:00:15]} Qxe8 {[%emt 0:00:08]} 52. Qxa1 {[%emt 0:00:13]} Qe7 {[%emt 0:00:35]} 53. Qc3 {[%emt 0:00:19]} Qxg5+ {[%emt 0:00:13]} 54. Kc2 {[%emt 0:00:07]} Qxh6 {[%emt 0:00:24]} 55. Bxe6+ {[%emt 0:00:18]} Kf8 {[%emt 0:00:07]} 56. Qc8+ {[%emt 0:00:11]} Kg7 {[%emt 0:00:07]} 57. Qg8# {[%emt 0:00:12]} 1-0

[Event "EYCC Open-U12 2019"]
[Site "Bratislava"]
[Date "2019.08.04"]
[Round "3.21"]
[White "Foerster-Yialamas, Lucas"]
[Black "Valiyev, Shahin"]
[Result "1-0"]
[ECO "B90"]
[WhiteElo "2028"]
[BlackElo "1830"]
[Annotator "NA"]
[PlyCount "59"]
[EventDate "2019.08.02"]
[EventType "swiss"]
[EventCountry "SVK"]
[SourceTitle "playchess.com"]
[Source "ChessBase"]
[SourceQuality "1"]
[TimeControl "40/5400+30:1800+30"]

1. e4 c5 2. Nf3 d6 3. d4 cxd4 4. Nxd4 Nf6 5. Nc3 a6 6. f3 e6 7. Be3 b5 8. Qd2 Nbd7 9. a4 b4 10. Nd1 a5 11. Bb5 Bb7 12. Nf2 h5 13. Rd1 Rc8 14. Nh3 Qc7 15. Rc1 d5 16. exd5 Nxd5 17. Ng5 Bc5 18. Ne4 Be7 19. Bf2 h4 20. O-O O-O 21. c4 N5f6 22. Nxf6+ Bxf6 23. Nxe6 fxe6 24. Qxd7 Rf7 25. Qxe6 Qb8 26. Rfe1 Kf8 27. Bc5+ Kg8 28. Be8 Rxc5 29. Qxf7+ Kh8 30. Qf8+ 1-0

[Event "EYCC Open-U12 2019"]
[Site "Bratislava"]
[Date "2019.08.04"]
[Round "3.22"]
[White "Janous, Marek"]
[Black "Pavesi, Brando"]
[Result "1/2-1/2"]
[ECO "B13"]
[WhiteElo "1717"]
[BlackElo "2109"]
[Annotator "NA"]
[PlyCount "59"]
[EventDate "2019.08.02"]
[EventType "swiss"]
[EventCountry "SVK"]
[SourceTitle "playchess.com"]
[Source "ChessBase"]
[SourceQuality "1"]
[TimeControl "40/5400+30:1800+30"]

1. e4 {[%emt 0:00:00]} c6 {[%emt 0:00:00]} 2. d4 {[%emt 0:00:00]} d5 {[%emt 0:00:00]} 3. exd5 {[%emt 0:00:31]} cxd5 {[%emt 0:00:10]} 4. c4 {[%emt 0:00:05]} Nf6 {[%emt 0:01:14]} 5. Nc3 {[%emt 0:00:05]} Nc6 {[%emt 0:01:49]} 6. Nf3 {[%emt 0:00:14]} Bg4 {[%emt 0:00:15]} 7. cxd5 {[%emt 0:00:20]} Nxd5 {[%emt 0:00:19]} 8. Qb3 {[%emt 0:01:05]} Bxf3 {[%emt 0:01:36]} 9. gxf3 {[%emt 0:00:41]} e6 {[%emt 0:00:49]} 10. Qxb7 {[%emt 0:00:13]} Nxd4 {[%emt 0:00:20]} 11. Bb5+ {[%emt 0:00:12]} Nxb5 {[%emt 0:00:43]} 12. Qc6+ {[%emt 0:00:40]} Ke7 {[%emt 0:00:14]} 13. Qc5+ {[%emt 0:01:04]} Qd6 {[%emt 0:16:38]} 14. Nxd5+ {[%emt 0:03:12]} exd5 {[%emt 0:03:49]} 15. Qxb5 {[%emt 0:00:09]} Rb8 {[%emt 0:04:43]} 16. Qd3 {[%emt 0:00:14]} f6 {[%emt 0:05:20]} 17. O-O {[%emt 0:01:20]} Kf7 {[%emt 0:05:22]} 18. Rd1 {[%emt 0:02:46]} Rd8 {[%emt 0:03:32]} 19. Be3 {[%emt 0:00:42]} Rd7 {[%emt 0:08:04]} 20. Rac1 {[%emt 0:01:45]} Qe6 {[%emt 0:05:05]} 21. Bf4 {[%emt 0:02:28]} Qb6 {[%emt 0:12:26]} 22. Qf5 {[%emt 0:04:01]} Qe6 {[%emt 0:00:20]} 23. Qxe6+ {[%emt 0:01:52]} Kxe6 {[%emt 0:00:02]} 24. Rc6+ {[%emt 0:00:49]} Kf5 {[%emt 0:03:10]} 25. Be3 {[%emt 0:00:07]} Be7 {[%emt 0:03:26]} 26. Ra6 {[%emt 0:00:35]} Kg6 {[%emt 0:00:17]} 27. Kg2 {[%emt 0:01:18]} Rc8 {[%emt 0:03:21]} 28. Ra5 {[%emt 0:02:17]} Rcd8 {[%emt 0:01:36]} 29. Bd4 {[%emt 0:00:16]} Ra8 {[%emt 0:04:13]} 30. Ra6 {[%emt 0:01:08]} 1/2-1/2

[Event "EYCC Open-U12 2019"]
[Site "Bratislava"]
[Date "2019.08.04"]
[Round "3.23"]
[White "Bialiauski, Artsiom"]
[Black "Kamilov, Dmitry"]
[Result "0-1"]
[ECO "A48"]
[WhiteElo "1784"]
[BlackElo "1990"]
[Annotator "NA"]
[PlyCount "110"]
[EventDate "2019.08.02"]
[EventType "swiss"]
[EventCountry "SVK"]
[SourceTitle "playchess.com"]
[Source "ChessBase"]
[SourceQuality "1"]
[TimeControl "40/5400+30:1800+30"]

1. d4 {[%emt 0:00:00]} Nf6 {[%emt 0:00:00]} 2. Nf3 {[%emt 0:00:43]} g6 {[%emt 0:00:00]} 3. c4 {[%emt 0:00:39]} d6 {[%emt 0:00:00]} 4. Nc3 {[%emt 0:00:53]} Bf5 {[%emt 0:00:54]} 5. Bf4 {[%emt 0:03:24]} Bg7 {[%emt 0:01:32]} 6. e3 {[%emt 0:00:39]} Nh5 {[%emt 0:02:36]} 7. Bg3 {[%emt 0:03:43]} Nxg3 {[%emt 0:11:34]} 8. hxg3 {[%emt 0:00:12]} O-O {[%emt 0:00:48]} 9. Be2 {[%emt 0:04:32]} Nc6 {[%emt 0:02:37]} 10. O-O {[%emt 0:02:51]} e5 {[%emt 0:00:36]} 11. d5 {[%emt 0:07:08]} Ne7 {[%emt 0:00:47]} 12. Nd2 {[%emt 0:01:01]} Bd7 {[%emt 0:02:20]} 13. b4 {[%emt 0:03:25]} f5 {[%emt 0:02:41]} 14. c5 {[%emt 0:04:13]} f4 {[%emt 0:02:39]} 15. Nc4 {[%emt 0:01:14]} fxg3 {[%emt 0:06:28]} 16. fxg3 {[%emt 0:00:45]} Nf5 {[%emt 0:01:12]} 17. Ne4 {[%emt 0:01:12]} b5 {[%emt 0:02:34]} 18. cxb6 {[%emt 0:00:59]} axb6 {[%emt 0:00:07]} 19. Qb3 {[%emt 0:05:22]} h5 {[%emt 0:16:27]} 20. Rf3 {[%emt 0:12:17]} h4 {[%emt 0:05:57]} 21. Raf1 {[%emt 0:11:28]} hxg3 {[%emt 0:03:37]} 22. Nxg3 {[%emt 0:00:20]} Nxg3 {[%emt 0:00:13]} 23. Rxg3 {[%emt 0:00:04]} Qh4 {[%emt 0:01:23]} 24. e4 {[%emt 0:03:11]} Qxe4 {[%emt 0:03:54]} 25. Re3 {[%emt 0:03:06]} Rxf1+ {[%emt 0:04:02]} 26. Kxf1 {[%emt 0:01:01]} Qxd5 {[%emt 0:01:57]} 27. Qc2 {[%emt 0:01:01]} Bf5 {[%emt 0:03:36]} 28. Nxb6 {[%emt 0:02:50]} Bxc2 {[%emt 0:14:55]} 29. Nxd5 {[%emt 0:00:04]} Rxa2 {[%emt 0:01:32]} 30. Nxc7 {[%emt 0:02:22]} Ra1+ {[%emt 0:00:06]} 31. Kf2 {[%emt 0:00:04]} e4 {[%emt 0:00:06]} 32. Bc4+ {[%emt 0:00:05]} Kh7 {[%emt 0:01:07]} 33. Rh3+ {[%emt 0:04:39]} Bh6 34. Ne6 {[%emt 0:08:27]} e3+ {[%emt 0:00:36]} 35. Rxe3 {[%emt 0:01:19]} Bxe3+ {[%emt 0:00:21]} 36. Kxe3 {[%emt 0:00:04]} Ra4 {[%emt 0:01:27]} 37. Kd2 {[%emt 0:00:11]} Rxb4 {[%emt 0:01:51]} 38. Kc3 {[%emt 0:00:10]} Ra4 {[%emt 0:00:17]} 39. Bd5 {[%emt 0:01:43]} Bf5 {[%emt 0:01:06]} 40. Nd4 {[%emt 0:00:00]} Kg7 {[%emt 0:00:00]} 41. Bf3 {[%emt 0:00:52]} Kf6 {[%emt 0:03:08]} 42. Bc6 {[%emt 0:00:31]} Ra1 {[%emt 0:01:31]} 43. Bf3 {[%emt 0:00:05]} Rb1 {[%emt 0:02:11]} 44. Kc4 {[%emt 0:00:43]} Be6+ {[%emt 0:00:42]} 45. Kc3 {[%emt 0:00:05]} Ra1 {[%emt 0:01:11]} 46. Kb2 {[%emt 0:00:14]} Ra4 {[%emt 0:01:24]} 47. Kc3 {[%emt 0:00:04]} Ra5 {[%emt 0:00:25]} 48. Kd3 {[%emt 0:00:27]} Bd5 {[%emt 0:00:46]} 49. Bxd5 {[%emt 0:00:06]} Rxd5 {[%emt 0:00:04]} 50. Ke4 {[%emt 0:00:03]} Rxd4+ {[%emt 0:05:22]} 51. Kxd4 {[%emt 0:00:37]} Ke6 {[%emt 0:00:05]} 52. Ke4 {[%emt 0:00:05]} g5 {[%emt 0:00:08]} 53. Kd4 {[%emt 0:00:07]} d5 {[%emt 0:00:05]} 54. Kd3 {[%emt 0:00:07]} Ke5 {[%emt 0:00:09]} 55. Ke3 {[%emt 0:00:04]} g4 0-1

[Event "EYCC Open-U12 2019"]
[Site "Bratislava"]
[Date "2019.08.04"]
[Round "3.24"]
[White "Dudarev, Vladislav"]
[Black "Franc, Borna"]
[Result "1-0"]
[ECO "A22"]
[WhiteElo "2137"]
[BlackElo "1826"]
[Annotator "NA"]
[PlyCount "53"]
[EventDate "2019.08.02"]
[EventType "swiss"]
[EventCountry "SVK"]
[SourceTitle "playchess.com"]
[Source "ChessBase"]
[SourceQuality "1"]
[TimeControl "40/5400+30:1800+30"]

1. c4 {[%emt 0:00:00]} e5 {[%emt 0:00:03]} 2. Nc3 {[%emt 0:00:00]} Nf6 {[%emt 0:00:12]} 3. g3 {[%emt 0:00:00]} Nc6 {[%emt 0:00:10]} 4. Bg2 {[%emt 0:00:04]} d6 {[%emt 0:00:24]} 5. e3 {[%emt 0:00:55]} g6 {[%emt 0:00:36]} 6. Nge2 {[%emt 0:00:57]} Bg7 {[%emt 0:00:10]} 7. O-O {[%emt 0:00:19]} O-O {[%emt 0:00:05]} 8. d4 {[%emt 0:00:03]} exd4 {[%emt 0:01:33]} 9. Nxd4 {[%emt 0:01:05]} Nxd4 {[%emt 0:00:48]} 10. exd4 {[%emt 0:00:02]} c6 {[%emt 0:02:18]} 11. d5 {[%emt 0:04:26]} c5 {[%emt 0:00:10]} 12. Bg5 {[%emt 0:00:51]} h6 {[%emt 0:00:39]} 13. Bf4 {[%emt 0:00:43]} a6 {[%emt 0:01:10]} 14. a4 {[%emt 0:00:12]} Bf5 {[%emt 0:02:23]} 15. Qd2 {[%emt 0:04:37]} Kh7 {[%emt 0:00:40]} 16. Rfe1 {[%emt 0:06:32]} Qc7 {[%emt 0:00:32]} 17. h3 {[%emt 0:13:15]} Rae8 {[%emt 0:03:42]} 18. Kh2 {[%emt 0:15:44]} Rxe1 {[%emt 0:15:37]} 19. Rxe1 {[%emt 0:00:04]} Re8 {[%emt 0:00:21]} 20. g4 {[%emt 0:13:14]} Bd7 {[%emt 0:04:31]} 21. Rxe8 {[%emt 0:08:47]} Nxe8 {[%emt 0:01:19]} 22. Qe3 {[%emt 0:01:10]} Bxc3 {[%emt 0:16:08]} 23. Qxc3 {[%emt 0:00:17]} Bxa4 {[%emt 0:02:13]} 24. b3 {[%emt 0:00:40]} Bd7 {[%emt 0:00:10]} 25. Bxh6 {[%emt 0:00:59]} Kxh6 {[%emt 0:05:17]} 26. Qh8+ {[%emt 0:00:10]} Kg5 {[%emt 0:00:01]} 27. Kg3 {[%emt 0:00:32]} 1-0

[Event "EYCC Open-U12 2019"]
[Site "Bratislava"]
[Date "2019.08.04"]
[Round "3.25"]
[White "Gregoric, Andraz"]
[Black "Kanov, Nikola"]
[Result "1/2-1/2"]
[ECO "C60"]
[WhiteElo "1911"]
[BlackElo "1908"]
[Annotator "NA"]
[PlyCount "144"]
[EventDate "2019.08.02"]
[EventType "swiss"]
[EventCountry "SVK"]
[SourceTitle "playchess.com"]
[Source "ChessBase"]
[SourceQuality "1"]
[TimeControl "40/5400+30:1800+30"]

1. e4 {[%emt 0:00:00]} e5 {[%emt 0:00:00]} 2. Nf3 {[%emt 0:00:00]} Nc6 {[%emt 0:00:00]} 3. Bb5 {[%emt 0:00:00]} Nge7 {[%emt 0:00:14]} 4. c3 {[%emt 0:00:15]} g6 {[%emt 0:00:49]} 5. h4 {[%emt 0:00:41]} Bg7 {[%emt 0:01:35]} 6. h5 {[%emt 0:00:53]} d5 {[%emt 0:10:35]} 7. hxg6 {[%emt 0:15:36]} hxg6 {[%emt 0:01:17]} 8. Rxh8+ {[%emt 0:00:05]} Bxh8 {[%emt 0:00:06]} 9. d3 {[%emt 0:00:12]} dxe4 {[%emt 0:05:09]} 10. dxe4 {[%emt 0:00:32]} Qxd1+ {[%emt 0:00:10]} 11. Kxd1 {[%emt 0:00:05]} Bg4 {[%emt 0:00:20]} 12. Bg5 {[%emt 0:00:42]} f6 {[%emt 0:01:29]} 13. Be3 {[%emt 0:00:10]} f5 {[%emt 0:02:13]} 14. Nbd2 {[%emt 0:01:00]} O-O-O {[%emt 0:09:49]} 15. Kc2 {[%emt 0:00:24]} fxe4 {[%emt 0:09:07]} 16. Nxe4 {[%emt 0:13:14]} Bf5 {[%emt 0:01:47]} 17. Bd3 {[%emt 0:07:50]} Nd5 {[%emt 0:02:03]} 18. Bd2 {[%emt 0:00:17]} a5 {[%emt 0:24:06]} 19. Re1 {[%emt 0:07:10]} Re8 {[%emt 0:06:59]} 20. a3 {[%emt 0:03:59]} Bg7 {[%emt 0:02:32]} 21. Bg5 {[%emt 0:14:56]} Rf8 {[%emt 0:04:16]} 22. Bd2 {[%emt 0:03:05]} Nf6 {[%emt 0:01:17]} 23. Nxf6 {[%emt 0:01:16]} Bxf6 {[%emt 0:00:34]} 24. Be4 {[%emt 0:00:19]} a4 {[%emt 0:02:36]} 25. Re2 {[%emt 0:14:46]} Bg7 {[%emt 0:01:01]} 26. Bg5 {[%emt 0:00:35]} Nb8 {[%emt 0:04:15]} 27. Nd2 {[%emt 0:01:55]} Nd7 {[%emt 0:00:20]} 28. f3 {[%emt 0:00:28]} Bf6 {[%emt 0:04:19]} 29. Be3 {[%emt 0:02:23]} Bg7 {[%emt 0:01:07]} 30. Bf2 {[%emt 0:02:20]} Rh8 {[%emt 0:00:54]} 31. Bg3 {[%emt 0:00:45]} b5 {[%emt 0:00:17]} 32. Bf2 {[%emt 0:01:25]} c6 {[%emt 0:00:45]} 33. c4 {[%emt 0:02:11]} Kc7 {[%emt 0:00:59]} 34. Bg3 {[%emt 0:00:19]} Kb6 {[%emt 0:00:41]} 35. Kc3 {[%emt 0:00:35]} Rh1 {[%emt 0:00:53]} 36. Re1 {[%emt 0:00:15]} Rxe1 {[%emt 0:00:58]} 37. Bxe1 {[%emt 0:00:05]} Bf8 {[%emt 0:01:03]} 38. g4 {[%emt 0:03:55]} Bxe4 {[%emt 0:00:41]} 39. Nxe4 {[%emt 0:00:06]} Bc5 {[%emt 0:00:27]} 40. Nxc5 {[%emt 0:00:00]} Kxc5 {[%emt 0:00:00]} 41. Bf2+ {[%emt 0:01:24]} Kd6 {[%emt 0:01:48]} 42. cxb5 {[%emt 0:02:24]} cxb5 {[%emt 0:00:10]} 43. Kb4 {[%emt 0:00:18]} Kc6 {[%emt 0:00:07]} 44. Bg3 {[%emt 0:00:26]} Nc5 {[%emt 0:10:20]} 45. Bh2 {[%emt 0:14:26]} e4 {[%emt 0:04:40]} 46. fxe4 {[%emt 0:00:05]} Nxe4 {[%emt 0:00:15]} 47. Bg1 {[%emt 0:03:59]} Nf6 {[%emt 0:01:32]} 48. g5 {[%emt 0:00:50]} Nd5+ {[%emt 0:01:53]} 49. Ka5 {[%emt 0:00:11]} Nf4 {[%emt 0:01:34]} 50. Kb4 {[%emt 0:01:13]} Ne6 {[%emt 0:00:26]} 51. Be3 {[%emt 0:00:16]} Nc7 {[%emt 0:00:09]} 52. Bg1 {[%emt 0:00:53]} Nd5+ {[%emt 0:02:12]} 53. Ka5 {[%emt 0:00:09]} Nf4 {[%emt 0:00:33]} 54. Kb4 {[%emt 0:00:06]} Nd3+ {[%emt 0:00:51]} 55. Kc3 {[%emt 0:00:17]} Ne5 {[%emt 0:00:05]} 56. Kb4 {[%emt 0:00:46]} Nc4 {[%emt 0:02:02]} 57. b3 {[%emt 0:01:37]} axb3 {[%emt 0:00:33]} 58. Kxb3 {[%emt 0:00:07]} Nd2+ {[%emt 0:00:25]} 59. Kb4 {[%emt 0:00:11]} Ne4 {[%emt 0:00:24]} 60. Be3 {[%emt 0:00:22]} Nd6 {[%emt 0:00:09]} 61. Bc1 {[%emt 0:01:04]} Nf7 {[%emt 0:02:22]} 62. Bf4 {[%emt 0:00:34]} Nd8 {[%emt 0:00:07]} 63. Bd2 {[%emt 0:01:17]} Nb7 {[%emt 0:00:08]} 64. Be3 {[%emt 0:01:27]} Nd6 {[%emt 0:00:10]} 65. Bc1 {[%emt 0:00:07]} Nf5 {[%emt 0:00:34]} 66. Bd2 {[%emt 0:00:35]} Nd4 {[%emt 0:00:11]} 67. Bc1 {[%emt 0:00:40]} Kd5 {[%emt 0:00:14]} 68. Bb2 {[%emt 0:00:55]} Ne6 {[%emt 0:00:54]} 69. Kxb5 {[%emt 0:01:48]} Nxg5 {[%emt 0:00:03]} 70. a4 {[%emt 0:00:08]} Nf7 {[%emt 0:00:41]} 71. Bc1 {[%emt 0:00:28]} Nd6+ {[%emt 0:00:05]} 72. Kb6 {[%emt 0:00:39]} Nc4+ 1/2-1/2

[Event "EYCC Open-U12 2019"]
[Site "Bratislava"]
[Date "2019.08.04"]
[Round "3.26"]
[White "Nastore, Pavel-Alexandru"]
[Black "Gschiel, Alexander"]
[Result "1-0"]
[ECO "E34"]
[WhiteElo "2084"]
[BlackElo "1768"]
[Annotator "NA"]
[PlyCount "63"]
[EventDate "2019.08.02"]
[EventType "swiss"]
[EventCountry "SVK"]
[SourceTitle "playchess.com"]
[Source "ChessBase"]
[SourceQuality "1"]
[TimeControl "40/5400+30:1800+30"]

1. d4 {[%emt 0:00:00]} Nf6 {[%emt 0:00:00]} 2. c4 {[%emt 0:00:00]} e6 {[%emt 0:00:00]} 3. Nc3 {[%emt 0:00:00]} Bb4 {[%emt 0:00:07]} 4. Qc2 {[%emt 0:00:00]} d5 {[%emt 0:00:38]} 5. cxd5 {[%emt 0:00:00]} Qxd5 {[%emt 0:01:22]} 6. e3 {[%emt 0:00:03]} O-O {[%emt 0:01:10]} 7. Bd2 {[%emt 0:04:13]} Bxc3 {[%emt 0:02:55]} 8. Bxc3 {[%emt 0:00:07]} Re8 {[%emt 0:08:32]} 9. Nf3 {[%emt 0:00:30]} Nbd7 {[%emt 0:00:35]} 10. Be2 {[%emt 0:07:37]} c5 {[%emt 0:04:03]} 11. O-O {[%emt 0:10:56]} cxd4 {[%emt 0:05:36]} 12. Nxd4 {[%emt 0:00:52]} e5 {[%emt 0:03:36]} 13. Nb5 {[%emt 0:14:02]} Qc5 {[%emt 0:08:21]} 14. Rfd1 {[%emt 0:02:54]} Nd5 {[%emt 0:02:25]} 15. Rxd5 {[%emt 0:00:42]} Qxd5 {[%emt 0:02:15]} 16. Nc7 {[%emt 0:00:04]} Qc6 {[%emt 0:00:32]} 17. Nxe8 {[%emt 0:00:03]} Nb6 {[%emt 0:11:41]} 18. Nxg7 {[%emt 0:05:28]} Kxg7 {[%emt 0:00:41]} 19. Bxe5+ {[%emt 0:00:05]} f6 {[%emt 0:01:10]} 20. Bc3 {[%emt 0:02:24]} Be6 {[%emt 0:04:39]} 21. Bf3 {[%emt 0:00:21]} Qd7 {[%emt 0:01:23]} 22. Rd1 {[%emt 0:00:17]} Qf7 {[%emt 0:00:28]} 23. b3 {[%emt 0:02:50]} Rc8 {[%emt 0:01:44]} 24. Qb2 {[%emt 0:01:17]} Bf5 {[%emt 0:06:26]} 25. e4 {[%emt 0:08:04]} Be6 {[%emt 0:00:48]} 26. Qd2 {[%emt 0:01:27]} Nd7 {[%emt 0:01:55]} 27. e5 {[%emt 0:03:06]} Nxe5 {[%emt 0:01:05]} 28. Bxe5 {[%emt 0:00:05]} fxe5 {[%emt 0:00:14]} 29. Qg5+ {[%emt 0:00:02]} Kf8 {[%emt 0:00:39]} 30. Qxe5 {[%emt 0:00:12]} Rc2 {[%emt 0:02:39]} 31. Qh8+ {[%emt 0:03:28]} Qg8 {[%emt 0:01:56]} 32. Qf6+ {[%emt 0:00:01]} 1-0

[Event "EYCC Open-U12 2019"]
[Site "Bratislava"]
[Date "2019.08.04"]
[Round "3.27"]
[White "Habans Aguerrea, Javier"]
[Black "Gudmundsson, Gunnar Erik"]
[Result "1-0"]
[ECO "E08"]
[WhiteElo "2083"]
[BlackElo "1746"]
[Annotator "NA"]
[PlyCount "39"]
[EventDate "2019.08.02"]
[EventType "swiss"]
[EventCountry "SVK"]
[SourceTitle "playchess.com"]
[Source "ChessBase"]
[SourceQuality "1"]
[TimeControl "40/5400+30:1800+30"]

1. d4 {[%emt 0:00:00]} Nf6 {[%emt 0:00:00]} 2. c4 {[%emt 0:00:00]} e6 {[%emt 0:00:00]} 3. g3 {[%emt 0:00:00]} d5 {[%emt 0:00:52]} 4. Nf3 {[%emt 0:00:06]} Be7 {[%emt 0:00:40]} 5. Bg2 {[%emt 0:00:09]} O-O {[%emt 0:00:15]} 6. O-O {[%emt 0:04:27]} Nbd7 {[%emt 0:03:59]} 7. Qc2 {[%emt 0:09:51]} Re8 {[%emt 0:13:45]} 8. Nbd2 {[%emt 0:10:10]} c5 {[%emt 0:06:30]} 9. Rd1 {[%emt 0:01:36]} b6 {[%emt 0:04:05]} 10. e4 {[%emt 0:03:25]} dxe4 {[%emt 0:02:39]} 11. Nxe4 {[%emt 0:00:09]} Bb7 {[%emt 0:11:59]} 12. Nxf6+ {[%emt 0:08:47]} Bxf6 {[%emt 0:02:16]} 13. dxc5 {[%emt 0:00:38]} bxc5 {[%emt 0:01:49]} 14. Ng5 {[%emt 0:06:41]} Bxg2 {[%emt 0:27:21]} 15. Qxh7+ {[%emt 0:00:09]} Kf8 {[%emt 0:00:06]} 16. Kxg2 {[%emt 0:01:22]} Bxg5 {[%emt 0:02:49]} 17. Qh8+ {[%emt 0:01:10]} Ke7 {[%emt 0:00:09]} 18. Bxg5+ {[%emt 0:00:07]} Nf6 {[%emt 0:02:51]} 19. Qxg7 {[%emt 0:00:10]} Qd4 {[%emt 0:03:26]} 20. Rxd4 {[%emt 0:00:11]} 1-0

[Event "EYCC Open-U12 2019"]
[Site "Bratislava"]
[Date "2019.08.04"]
[Round "3.28"]
[White "Janeczko, Jakub"]
[Black "Mekhane, Adam"]
[Result "1-0"]
[ECO "B62"]
[WhiteElo "1663"]
[BlackElo "2040"]
[Annotator "NA"]
[PlyCount "85"]
[EventDate "2019.08.02"]
[EventType "swiss"]
[EventCountry "SVK"]
[SourceTitle "playchess.com"]
[Source "ChessBase"]
[SourceQuality "1"]
[TimeControl "40/5400+30:1800+30"]

1. e4 {[%emt 0:00:00]} c5 {[%emt 0:00:00]} 2. Nf3 {[%emt 0:00:00]} Nc6 {[%emt 0:00:00]} 3. d4 {[%emt 0:00:00]} cxd4 {[%emt 0:00:00]} 4. Nxd4 {[%emt 0:00:00]} Nf6 {[%emt 0:00:00]} 5. Nc3 {[%emt 0:00:04]} d6 {[%emt 0:00:00]} 6. Bg5 {[%emt 0:01:36]} e6 {[%emt 0:00:32]} 7. Bb5 {[%emt 0:00:31]} Bd7 {[%emt 0:01:59]} 8. Bxc6 {[%emt 0:00:52]} bxc6 {[%emt 0:05:57]} 9. Qf3 {[%emt 0:03:05]} Be7 {[%emt 0:03:34]} 10. e5 {[%emt 0:05:00]} Nd5 {[%emt 0:02:44]} 11. Ne4 {[%emt 0:01:13]} Qa5+ {[%emt 0:08:21]} 12. Bd2 {[%emt 0:06:48]} Qc7 {[%emt 0:08:15]} 13. exd6 {[%emt 0:13:38]} Bxd6 {[%emt 0:00:50]} 14. Nxd6+ {[%emt 0:03:06]} Qxd6 {[%emt 0:00:01]} 15. O-O {[%emt 0:01:49]} c5 {[%emt 0:03:32]} 16. Nb3 {[%emt 0:04:01]} c4 {[%emt 0:04:55]} 17. Na5 {[%emt 0:05:38]} Qc7 {[%emt 0:09:55]} 18. Qg4 {[%emt 0:03:34]} O-O {[%emt 0:11:49]} 19. Bh6 {[%emt 0:05:34]} g6 {[%emt 0:06:44]} 20. Qd4 {[%emt 0:08:51]} f6 {[%emt 0:00:02]} 21. Bxf8 {[%emt 0:00:10]} Qxa5 {[%emt 0:00:46]} 22. Bh6 {[%emt 0:04:04]} Rc8 {[%emt 0:02:50]} 23. Bd2 {[%emt 0:00:43]} Qa6 {[%emt 0:02:23]} 24. Bc3 {[%emt 0:02:31]} Bc6 {[%emt 0:03:14]} 25. Qh4 {[%emt 0:04:05]} e5 {[%emt 0:02:10]} 26. Rfe1 {[%emt 0:02:49]} Bb7 {[%emt 0:03:42]} 27. f3 {[%emt 0:02:17]} Qe6 {[%emt 0:02:49]} 28. Qf2 {[%emt 0:03:53]} a6 29. Rad1 {[%emt 0:02:21]} Nf4 {[%emt 0:04:07]} 30. Bd2 {[%emt 0:01:18]} Nd5 {[%emt 0:00:34]} 31. f4 {[%emt 0:00:56]} Rf8 {[%emt 0:04:52]} 32. Qe2 {[%emt 0:03:02]} Qc6 {[%emt 0:02:05]} 33. fxe5 {[%emt 0:01:54]} fxe5 {[%emt 0:00:01]} 34. Qe4 {[%emt 0:00:33]} Qb6+ {[%emt 0:01:51]} 35. Be3 {[%emt 0:00:33]} Nxe3 {[%emt 0:00:07]} 36. Qxe3 {[%emt 0:00:08]} Qxb2 {[%emt 0:00:25]} 37. Rb1 {[%emt 0:01:16]} Qxa2 {[%emt 0:00:33]} 38. Rxb7 {[%emt 0:00:09]} Qxc2 {[%emt 0:00:01]} 39. Qa7 {[%emt 0:00:43]} g5 {[%emt 0:01:54]} 40. Rg7+ {[%emt 0:00:00]} Kh8 41. Rf7 {[%emt 0:02:59]} Rg8 {[%emt 0:00:30]} 42. Qe7 {[%emt 0:00:30]} Qf2+ {[%emt 0:02:16]} 43. Kxf2 {[%emt 0:00:13]} 1-0